Workbook

Sheet ESTIMATE
C1: PROJECT: MAVIS TIRES & BRAKES | N1: Web: http://sigmaestimations.com Email: info@sigmaestimations.com
C3: ADDRESS: 8-BAY SQUARE #TBD - DAYTONA BEACH, FL
A5: ITEM # | B5: DWG # | C5: CSI #/SUB DETAIL | D5: DESCRIPTION | E5: QTY. | F5: WASTE | G5: QTY. W/ WASTE | H5: UNIT | I5: UNIT LABOR HOURS | J5: TOTAL LABOR HOURS | K5: PER HOUR LABOR RATE | L5: TOTAL LABOR COST | M5: UNIT MATERIAL COST | N5: TOTAL MATERIAL COST | O5: ITEM COST | P5: TRADE COST
C6: 010000 | D6: DIVISION 01 — GENERAL REQUIREMENTS
A7: =IF(H7<>"",1+MAX(A1:A6),"") -> 1 | D7: Submittal Procedures | E7: 1 | F7: 0% | G7: =E7+(E7*F7) -> 1 | H7: LS | I7: 0.00 | J7: =I7*G7 -> 0.00 | K7: 0 | L7: =K7*J7 -> 0 | M7: 0 | N7: =M7*G7 -> 0 | O7: =L7+N7 -> 0
A8: =IF(H8<>"",1+MAX(A2:A7),"") -> 2 | D8: Temporary Facilities and Controls | E8: 1 | F8: 0% | G8: 1 | H8: LS | I8: 0.00 | J8: 0.00 | K8: 0 | L8: 0 | M8: 0 | N8: 0 | O8: 0
A9: 3 | D9: Closeout Procedures | E9: 1 | F9: 0% | G9: 1 | H9: LS | I9: 0.00 | J9: 0.00 | K9: 0 | L9: 0 | M9: 0 | N9: 0 | O9: 0
A10: 4 | D10: Payment Procedures | E10: 1 | F10: 0% | G10: 1 | H10: LS | I10: 0.00 | J10: 0.00 | K10: 0 | L10: 0 | M10: 0 | N10: 0 | O10: 0
A11: 5 | D11: Contract Modification Procedures | E11: 1 | F11: 0% | G11: 1 | H11: LS | I11: 0.00 | J11: 0.00 | K11: 0 | L11: 0 | M11: 0 | N11: 0 | O11: 0
A12: 6 | D12: Maintenance & Traffic Protection | E12: 1 | F12: 0% | G12: 1 | H12: LS | I12: 0.00 | J12: 0.00 | K12: 0 | L12: 0 | M12: 0 | N12: 0 | O12: 0
D13: SUBTOTAL | L13: =IF(H13<>"",0.4*N13,"") ->  | M13: =IF(H13<>"",N13-L13,"") ->  | P13: =SUM(O7:O12) -> 0
C14: 050000 | D14: DIVISION 05 — METALS | L14: =IF(H14<>"",0.4*N14,"") ->  | M14: =IF(H14<>"",N14-L14,"") -> 
D16: METAL STUDS
D18: Furring Wall 20'-4"H | E18: =26+56 -> 82
A19: =IF(H19<>"",1+MAX(A7:A18),"") -> 7 | B19: A100-A400 | C19: A100-A400 | D19: 7/8" Metal Hat Channel @ 16" O.C. | E19: =(E18/1.33)*22 -> 1356 | F19: 5% | G19: =E19+(E19*F19) -> 1424 | H19: LF | I19: 0.045 | J19: =I19*G19 -> 64.09 | K19: $43.68 | L19: =K19*J19 -> $2,799.43 | M19: $2.35 | N19: =M19*G19 -> $3,346.89 | O19: =L19+N19 -> $6,146
A20: =IF(H20<>"",1+MAX(A8:A19),"") -> 
D21: Furring Wall 18'-4"H | E21: 30
A22: 8 | B22: A100-A400 | C22: A100-A400 | D22: 7/8" Metal Hat Channel @ 16" O.C. | E22: =(E21/1.33)*20 -> 451 | F22: 5% | G22: =E22+(E22*F22) -> 474 | H22: LF | I22: 0.045 | J22: =I22*G22 -> 21.32 | K22: $43.68 | L22: =K22*J22 -> $931.07 | M22: $2.35 | N22: =M22*G22 -> $1,113.16 | O22: =L22+N22 -> $2,044
D24: Furring Wall 17'-3"H | E24: 26
A25: 9 | B25: A100-A400 | C25: A100-A400 | D25: 7/8" Metal Hat Channel @ 16" O.C. | E25: =(E24/1.33)*18 -> 352 | F25: 5% | G25: =E25+(E25*F25) -> 369 | H25: LF | I25: 0.045 | J25: =I25*G25 -> 16.63 | K25: $43.68 | L25: =K25*J25 -> $726.24 | M25: $2.35 | N25: =M25*G25 -> $868.26 | O25: =L25+N25 -> $1,595
D27: Furring Wall 1'-6"H | E27: 128
A28: 10 | B28: A100-A400 | C28: A100-A400 | D28: 7/8" Metal Hat Channel @ 16" O.C. | E28: =(E27/1.33)*2 -> 192 | F28: 5% | G28: =E28+(E28*F28) -> 202 | H28: LF | I28: 0.045 | J28: =I28*G28 -> 9.09 | K28: $43.68 | L28: =K28*J28 -> $397.26 | M28: $2.35 | N28: =M28*G28 -> $474.95 | O28: =L28+N28 -> $872
D30: Exterior Metal Stud Wall (6'-0"H) | E30: 55
A31: 11 | B31: A100-A400 | C31: A100-A400 | D31: 6" Metal Stud @ 16" O.C., 6'-0"H | E31: =(E30/1.33)*6 -> 248 | F31: 5% | G31: =E31+(E31*F31) -> 261 | H31: LF | I31: 0.045 | J31: =I31*G31 -> 11.72 | K31: $43.68 | L31: =K31*J31 -> $512.09 | M31: $2.70 | N31: =M31*G31 -> $703.42 | O31: =L31+N31 -> $1,216
A32: 12 | B32: A100-A400 | C32: A100-A400 | D32: 6" Metal Top Track | E32: =E30 -> 55 | F32: 5% | G32: =E32+(E32*F32) -> 58 | H32: LF | I32: 0.035 | J32: 2.02 | K32: $43.68 | L32: $88.29 | M32: $2.10 | N32: $121.28 | O32: $210
A33: 13 | B33: A100-A400 | C33: A100-A400 | D33: 6" Metal Bottom Track | E33: =E30 -> 55 | F33: 5% | G33: 58 | H33: LF | I33: 0.035 | J33: 2.02 | K33: $43.68 | L33: $88.29 | M33: $2.10 | N33: $121.28 | O33: $210
D35: Exterior Metal Stud Wall (7'-7"H) | E35: 59
A36: 14 | B36: A100-A400 | C36: A100-A400 | D36: 6" Metal Stud @ 16" O.C., 8'-0"H | E36: =(E35/1.33)*8 -> 355 | F36: 5% | G36: =E36+(E36*F36) -> 373 | H36: LF | I36: 0.045 | J36: =I36*G36 -> 16.77 | K36: $43.68 | L36: =K36*J36 -> $732.44 | M36: $2.70 | N36: =M36*G36 -> $1,006.11 | O36: =L36+N36 -> $1,739
A37: 15 | B37: A100-A400 | C37: A100-A400 | D37: 6" Metal Stud Top Track | E37: =E35 -> 59 | F37: 5% | G37: =E37+(E37*F37) -> 62 | H37: LF | I37: 0.035 | J37: 2.17 | K37: $43.68 | L37: $94.71 | M37: $2.10 | N37: $130.10 | O37: $225
A38: 16 | B38: A100-A400 | C38: A100-A400 | D38: 6" Metal Stud Top Track | E38: =E35 -> 59 | F38: 5% | G38: 62 | H38: LF | I38: 0.035 | J38: 2.17 | K38: $43.68 | L38: $94.71 | M38: $2.10 | N38: $130.10 | O38: $225
D40: Exterior Metal Stud Wall (6'-4"H) | E40: 24
A41: 17 | B41: A100-A400 | C41: A100-A400 | D41: 6" Metal Stud @ 16" O.C., 8'-0"H | E41: =(E40/1.33)*8 -> 144 | F41: 5% | G41: =E41+(E41*F41) -> 152 | H41: LF | I41: 0.045 | J41: =I41*G41 -> 6.82 | K41: $43.68 | L41: =K41*J41 -> $297.94 | M41: $2.70 | N41: =M41*G41 -> $409.26 | O41: =L41+N41 -> $707
A42: 18 | B42: A100-A400 | C42: A100-A400 | D42: 6" Metal Stud Top Track | E42: =E40 -> 24 | F42: 5% | G42: =E42+(E42*F42) -> 25 | H42: LF | I42: 0.035 | J42: 0.88 | K42: $43.68 | L42: $38.53 | M42: $2.10 | N42: $52.92 | O42: $91
A43: 19 | B43: A100-A400 | C43: A100-A400 | D43: 6" Metal Stud Bottom Track | E43: =E40 -> 24 | F43: 5% | G43: 25 | H43: LF | I43: 0.035 | J43: 0.88 | K43: $43.68 | L43: $38.53 | M43: $2.10 | N43: $52.92 | O43: $91
D45: Exterior Metal Stud Wall (6'-0"H) | E45: 43
A46: 20 | B46: A100-A400 | C46: A100-A400 | D46: 6" Metal Stud @ 16" O.C., 6'-0"H | E46: =(E45/1.33)*6 -> 194 | F46: 5% | G46: =E46+(E46*F46) -> 204 | H46: LF | I46: 0.045 | J46: =I46*G46 -> 9.17 | K46: $43.68 | L46: =K46*J46 -> $400.36 | M46: $2.70 | N46: =M46*G46 -> $549.95 | O46: =L46+N46 -> $950
A47: 21 | B47: A100-A400 | C47: A100-A400 | D47: 6" Metal Stud Top Track | E47: =E45 -> 43 | F47: 5% | G47: =E47+(E47*F47) -> 45 | H47: LF | I47: 0.035 | J47: 1.58 | K47: $43.68 | L47: $69.03 | M47: $2.10 | N47: $94.82 | O47: $164
A48: 22 | B48: A100-A400 | C48: A100-A400 | D48: 6" Metal Stud Bottom Track | E48: =E45 -> 43 | F48: 5% | G48: 45 | H48: LF | I48: 0.035 | J48: 1.58 | K48: $43.68 | L48: $69.03 | M48: $2.10 | N48: $94.82 | O48: $164
D50: Interior Metal Stud Wall (9'-0"H) | E50: 25
A51: 23 | B51: A100-A400 | C51: A100-A400 | D51: (3 5/8" x 20 GA) Metal Stud @ 16" O.C., 10'-0"H | E51: =(E50/1.33)*10 -> 188 | F51: 5% | G51: =E51+(E51*F51) -> 197 | H51: LF | I51: 0.045 | J51: =I51*G51 -> 8.88 | K51: $43.68 | L51: =K51*J51 -> $387.95 | M51: $2.10 | N51: =M51*G51 -> $414.47 | O51: =L51+N51 -> $802
A52: 24 | B52: A100-A400 | C52: A100-A400 | D52: (3 5/8" x 20 GA) Metal Stud Top Track | E52: =E50 -> 25 | F52: 5% | G52: 26 | H52: LF | I52: 0.035 | J52: =I52*G52 -> 0.92 | K52: $43.68 | L52: =K52*J52 -> $40.13 | M52: $2.10 | N52: =M52*G52 -> $55.13 | O52: =L52+N52 -> $95
A53: 25 | B53: A100-A400 | C53: A100-A400 | D53: (3 5/8" x 20 GA) Metal Stud Bottom Track | E53: =E50 -> 25 | F53: 5% | G53: 26 | H53: LF | I53: 0.035 | J53: =I53*G53 -> 0.92 | K53: $43.68 | L53: =K53*J53 -> $40.13 | M53: $2.10 | N53: =M53*G53 -> $55.13 | O53: =L53+N53 -> $95
D55: 1B: Interior Metal Stud Wall (18'-8"H) | E55: 40
A56: 26 | B56: A100-A400 | C56: A100-A400 | D56: (3 5/8" x 20 GA) Metal Stud @ 16" O.C., 20'-0"H | E56: =(E55/1.33)*20 -> 602 | F56: 5% | G56: =E56+(E56*F56) -> 632 | H56: LF | I56: 0.045 | J56: =I56*G56 -> 28.42 | K56: $43.68 | L56: =K56*J56 -> $1,241.43 | M56: $2.10 | N56: =M56*G56 -> $1,326.32 | O56: =L56+N56 -> $2,568
A57: 27 | B57: A100-A400 | C57: A100-A400 | D57: (3 5/8" x 18 GA) Metal Stud Top Track | E57: =E55 -> 40 | F57: 5% | G57: =E57+(E57*F57) -> 42 | H57: LF | I57: 0.035 | J57: =I57*G57 -> 1.47 | K57: $43.68 | L57: =K57*J57 -> $64.21 | M57: $2.10 | N57: =M57*G57 -> $88.20 | O57: =L57+N57 -> $152
A58: 28 | B58: A100-A400 | C58: A100-A400 | D58: (3 5/8" x 18 GA) Metal Stud Bottom Track | E58: =E55 -> 40 | F58: 5% | G58: 42 | H58: LF | I58: 0.035 | J58: 1.47 | K58: $43.68 | L58: $64.21 | M58: $2.10 | N58: $88.20 | O58: $152
D60: 1B: Interior Metal Stud Wall (8'-0"H) | E60: 49
A61: 29 | B61: A100-A400 | C61: A100-A400 | D61: (3 5/8" x 20 GA) Metal Stud @ 16" O.C., 8'-0"H | E61: =(E60/1.33)*8 -> 295 | F61: 5% | G61: =E61+(E61*F61) -> 309 | H61: LF | I61: 0.045 | J61: =I61*G61 -> 13.93 | K61: $43.68 | L61: =K61*J61 -> $608.30 | M61: $2.10 | N61: =M61*G61 -> $649.89 | O61: =L61+N61 -> $1,258
A62: 30 | B62: A100-A400 | C62: A100-A400 | D62: (3 5/8" x 18 GA) Metal Stud Top Track | E62: =E60 -> 49 | F62: 5% | G62: =E62+(E62*F62) -> 51 | H62: LF | I62: 0.035 | J62: =I62*G62 -> 1.80 | K62: $43.68 | L62: =K62*J62 -> $78.66 | M62: $2.10 | N62: =M62*G62 -> $108.05 | O62: =L62+N62 -> $187
A63: 31 | B63: A100-A400 | C63: A100-A400 | D63: (3 5/8" x 18 GA) Metal Stud Bottom Track | E63: =E60 -> 49 | F63: 5% | G63: 51 | H63: LF | I63: 0.035 | J63: 1.80 | K63: $43.68 | L63: $78.66 | M63: $2.10 | N63: $108.05 | O63: $187
D65: Interior Metal Stud Wall (12'-0"H) | E65: 16
A66: 32 | B66: A100-A400 | C66: A100-A400 | D66: (3 5/8" x 20 GA) Metal Stud @ 16" O.C., 12'-0"H | E66: =(E65/1.33)*12 -> 144 | F66: 5% | G66: =E66+(E66*F66) -> 152 | H66: LF | I66: 0.045 | J66: =I66*G66 -> 6.82 | K66: $43.68 | L66: =K66*J66 -> $297.94 | M66: $2.10 | N66: =M66*G66 -> $318.32 | O66: =L66+N66 -> $616
A67: 33 | B67: A100-A400 | C67: A100-A400 | D67: (3 5/8" 18 GA) Metal Stud Top Track | E67: =E65 -> 16 | F67: 5% | G67: =E67+(E67*F67) -> 17 | H67: LF | I67: 0.035 | J67: =I67*G67 -> 0.59 | K67: $43.68 | L67: =K67*J67 -> $25.68 | M67: $2.10 | N67: =M67*G67 -> $35.28 | O67: =L67+N67 -> $61
A68: 34 | B68: A100-A400 | C68: A100-A400 | D68: (3 5/8" 18 GA) Metal Stud Bottom Track | E68: =E65 -> 16 | F68: 5% | G68: 17 | H68: LF | I68: 0.035 | J68: 0.59 | K68: $43.68 | L68: $25.68 | M68: $2.10 | N68: $35.28 | O68: $61
D70: 1B: Interior Metal Stud Wall (8'-0"H) | E70: 3
A71: 35 | B71: A100-A400 | C71: A100-A400 | D71: (3 5/8" x 20 GA) Metal Stud @ 16" O.C., 8'-0"H | E71: =(E70/1.33)*8 -> 18 | F71: 5% | G71: =E71+(E71*F71) -> 19 | H71: LF | I71: 0.045 | J71: =I71*G71 -> 0.85 | K71: $43.68 | L71: =K71*J71 -> $37.24 | M71: $2.10 | N71: =M71*G71 -> $39.79 | O71: =L71+N71 -> $77
A72: 36 | B72: A100-A400 | C72: A100-A400 | D72: (3 5/8" x 18 GA) Metal Stud Top Track | E72: =E70 -> 3 | F72: 5% | G72: =E72+(E72*F72) -> 3 | H72: LF | I72: 0.035 | J72: =I72*G72 -> 0.11 | K72: $43.68 | L72: =K72*J72 -> $4.82 | M72: $2.10 | N72: =M72*G72 -> $6.62 | O72: =L72+N72 -> $11
A73: 37 | B73: A100-A400 | C73: A100-A400 | D73: (3 5/8" x 18 GA) Metal Stud Bottom Track | E73: =E70 -> 3 | F73: 5% | G73: 3 | H73: LF | I73: 0.035 | J73: 0.11 | K73: $43.68 | L73: $4.82 | M73: $2.10 | N73: $6.62 | O73: $11
D75: 2A: Interior Metal Stud Wall (8'-0"H) | E75: 7
A76: 38 | B76: A100-A400 | C76: A100-A400 | D76: (3 5/8" x 20 GA) Metal Stud @ 16" O.C., 8'-0"H | E76: =(E75/1.33)*8 -> 42 | F76: 5% | G76: =E76+(E76*F76) -> 44 | H76: LF | I76: 0.045 | J76: =I76*G76 -> 1.99 | K76: $43.68 | L76: =K76*J76 -> $86.90 | M76: $2.10 | N76: =M76*G76 -> $92.84 | O76: =L76+N76 -> $180
A77: 39 | B77: A100-A400 | C77: A100-A400 | D77: (3 5/8" 20 GA) Metal Stud Top Track | E77: =E75 -> 7 | F77: 5% | G77: =E77+(E77*F77) -> 7 | H77: LF | I77: 0.035 | J77: =I77*G77 -> 0.26 | K77: $43.68 | L77: =K77*J77 -> $11.24 | M77: $2.10 | N77: =M77*G77 -> $15.44 | O77: =L77+N77 -> $27
A78: 40 | B78: A100-A400 | C78: A100-A400 | D78: (3 5/8" 20 GA) Metal Stud Bottom Track | E78: =E75 -> 7 | F78: 5% | G78: 7 | H78: LF | I78: 0.035 | J78: 0.26 | K78: $43.68 | L78: $11.24 | M78: $2.10 | N78: $15.44 | O78: $27
D80: 2A: Interior Metal Stud Wall (8'-0"H) | E80: 33
A81: 41 | B81: A100-A400 | C81: A100-A400 | D81: (3 5/8" x 20 GA) Metal Stud @ 16" O.C., 8'-0"H | E81: =(E80/1.33)*8 -> 198 | F81: 5% | G81: =E81+(E81*F81) -> 208 | H81: LF | I81: 0.045 | J81: =I81*G81 -> 9.38 | K81: $43.68 | L81: =K81*J81 -> $409.67 | M81: $2.10 | N81: =M81*G81 -> $437.68 | O81: =L81+N81 -> $847
A82: 42 | B82: A100-A400 | C82: A100-A400 | D82: (3 5/8" x 20 GA) Metal Stud Top Track | E82: =E80 -> 33 | F82: 5% | G82: =E82+(E82*F82) -> 35 | H82: LF | I82: 0.035 | J82: =I82*G82 -> 1.21 | K82: $43.68 | L82: =K82*J82 -> $52.97 | M82: $2.10 | N82: =M82*G82 -> $72.77 | O82: =L82+N82 -> $126
A83: 43 | B83: A100-A400 | C83: A100-A400 | D83: (3 5/8" x 20 GA) Metal Stud Bottom Track | E83: =E80 -> 33 | F83: 5% | G83: 35 | H83: LF | I83: 0.035 | J83: 1.21 | K83: $43.68 | L83: $52.97 | M83: $2.10 | N83: $72.77 | O83: $126
A84: =IF(H84<>"",1+MAX(A72:A83),"") -> 
D85: 2C: Interior Metal Stud Wall (8'-0"H) | E85: 8
A86: 44 | B86: A100-A400 | C86: A100-A400 | D86: (6"x 20 GA) Metal Stud @ 16" O.C., 8'-0"H | E86: =(E85/1.33)*8 -> 48 | F86: 5% | G86: =E86+(E86*F86) -> 51 | H86: LF | I86: 0.045 | J86: =I86*G86 -> 2.27 | K86: $43.68 | L86: =K86*J86 -> $99.31 | M86: $2.70 | N86: =M86*G86 -> $136.42 | O86: =L86+N86 -> $236
A87: 45 | B87: A100-A400 | C87: A100-A400 | D87: (6"x 20 GA) Metal Stud Top Track | E87: =E85 -> 8 | F87: 5% | G87: =E87+(E87*F87) -> 8 | H87: LF | I87: 0.035 | J87: 0.29 | K87: $43.68 | L87: $12.84 | M87: $2.10 | N87: $17.64 | O87: $30
A88: 46 | B88: A100-A400 | C88: A100-A400 | D88: (6"x 20 GA) Metal Stud Bottom Track | E88: =E85 -> 8 | F88: 5% | G88: 8 | H88: LF | I88: 0.035 | J88: 0.29 | K88: $43.68 | L88: $12.84 | M88: $2.10 | N88: $17.64 | O88: $30
D90: 2C: Interior Metal Stud Wall (8'-0"H) | E90: 4
A91: 47 | B91: A100-A400 | C91: A100-A400 | D91: (6"x 20 GA) Metal Stud @ 16" O.C., 8'-0"H | E91: =(E90/1.33)*8 -> 24 | F91: 5% | G91: =E91+(E91*F91) -> 25 | H91: LF | I91: 0.045 | J91: =I91*G91 -> 1.14 | K91: $43.68 | L91: =K91*J91 -> $49.66 | M91: $2.70 | N91: =M91*G91 -> $68.21 | O91: =L91+N91 -> $118
A92: 48 | B92: A100-A400 | C92: A100-A400 | D92: (6"x 20 GA) Metal Stud Top Track | E92: =E90 -> 4 | F92: 5% | G92: =E92+(E92*F92) -> 4 | H92: LF | I92: 0.035 | J92: 0.15 | K92: $43.68 | L92: $6.42 | M92: $2.10 | N92: $8.82 | O92: $15
A93: 49 | B93: A100-A400 | C93: A100-A400 | D93: (6"x 20 GA) Metal Stud Bottom Track | E93: =E90 -> 4 | F93: 5% | G93: 4 | H93: LF | I93: 0.035 | J93: 0.15 | K93: $43.68 | L93: $6.42 | M93: $2.10 | N93: $8.82 | O93: $15
D95: 2C: Interior Metal Stud Wall (8'-0"H) | E95: 3
A96: 50 | B96: A100-A400 | C96: A100-A400 | D96: (6"x 20 GA) Metal Stud @ 16" O.C., 8'-0"H | E96: =(E95/1.33)*8 -> 18 | F96: 5% | G96: =E96+(E96*F96) -> 19 | H96: LF | I96: 0.045 | J96: =I96*G96 -> 0.85 | K96: $43.68 | L96: =K96*J96 -> $37.24 | M96: $2.70 | N96: =M96*G96 -> $51.16 | O96: =L96+N96 -> $88
A97: 51 | B97: A100-A400 | C97: A100-A400 | D97: (6"x 20 GA) Metal Stud Top Track | E97: =E95 -> 3 | F97: 5% | G97: =E97+(E97*F97) -> 3 | H97: LF | I97: 0.035 | J97: 0.11 | K97: $43.68 | L97: $4.82 | M97: $2.10 | N97: $6.62 | O97: $11
A98: 52 | B98: A100-A400 | C98: A100-A400 | D98: (6"x 20 GA) Metal Stud Top Track | E98: =E95 -> 3 | F98: 5% | G98: 3 | H98: LF | I98: 0.035 | J98: 0.11 | K98: $43.68 | L98: $4.82 | M98: $2.10 | N98: $6.62 | O98: $11
D100: Gypsum Board Ceiling
A101: 53 | B101: A100-A400 | C101: DIV-09 | D101: (3-5/8") 20 GA. Metal Stud Joists @ 24" O.C. | E101: 47 | F101: 5% | G101: =E101+(E101*F101) -> 49 | H101: LF | I101: 0.035 | J101: =I101*G101 -> 1.73 | K101: $43.68 | L101: =K101*J101 -> $75.45 | M101: $2.10 | N101: =M101*G101 -> $103.64 | O101: =L101+N101 -> $179
D103: SUBTOTAL | L103: =IF(H103<>"",I103*K103,"") ->  | P103: =SUM(O15:O102) -> $25,051
C104: 070000 | D104: DIVISION 07 — THERMAL AND MOISTURE PROTECTION | L104: =IF(H104<>"",0.4*N104,"") ->  | M104: =IF(H104<>"",N104-L104,"") -> 
D106: INSULATION
D108: Furring Wall 20'-4"H | E108: 82
A109: 54 | B109: A100-A400 | C109: A100-A400 | D109: 1 1/2" Thick Extruded Polystyrene Rigid Insulation (R-7.5) | E109: =E108*20.33 -> 1667 | F109: 5% | G109: =E109+(E109*F109) -> 1750 | H109: SF | I109: 0.026 | J109: =I109*G109 -> 45.51 | K109: $43.68 | L109: =K109*J109 -> $1,987.91 | M109: $1.63 | N109: =M109*G109 -> $2,853.17 | O109: =L109+N109 -> $4,841
D111: Furring Wall 18'-4"H | E111: 30
A112: 55 | B112: A100-A400 | C112: A100-A400 | D112: 1 1/2" Thick Extruded Polystyrene Rigid Insulation (R-7.5) | E112: =E111*18.33 -> 550 | F112: 5% | G112: =E112+(E112*F112) -> 577 | H112: SF | I112: 0.026 | J112: =I112*G112 -> 15.01 | K112: $43.68 | L112: =K112*J112 -> $655.74 | M112: $1.63 | N112: =M112*G112 -> $941.15 | O112: =L112+N112 -> $1,597
D114: Furring Wall 17'-3"H | E114: 26
A115: 56 | B115: A100-A400 | C115: A100-A400 | D115: 1 1/2" Thick Extruded Polystyrene Rigid Insulation (R-7.5) | E115: =E114*17.25 -> 449 | F115: 5% | G115: =E115+(E115*F115) -> 471 | H115: SF | I115: 0.026 | J115: =I115*G115 -> 12.24 | K115: $43.68 | L115: =K115*J115 -> $534.82 | M115: $1.63 | N115: =M115*G115 -> $767.61 | O115: =L115+N115 -> $1,302
D117: Furring Wall 1'-6"H | E117: 128
A118: 57 | B118: A100-A400 | C118: A100-A400 | D118: 1 1/2" Rigid Insulation | E118: =E117*1.5 -> 192 | F118: 5% | G118: =E118+(E118*F118) -> 202 | H118: SF | I118: 0.026 | J118: =I118*G118 -> 5.24 | K118: $43.68 | L118: =K118*J118 -> $228.95 | M118: $1.56 | N118: =M118*G118 -> $314.50 | O118: =L118+N118 -> $543
D120: Exterior Metal Stud Wall (6'-0"H) | E120: 55
A121: 58 | B121: A100-A400 | C121: A100-A400 | D121: R -21 Fiber Glass Bat insulation | E121: =E120*7.33 -> 403 | F121: 5% | G121: =E121+(E121*F121) -> 423 | H121: SF | I121: 0.026 | J121: =I121*G121 -> 11.01 | K121: $43.68 | L121: =K121*J121 -> $480.74 | M121: $1.68 | N121: =M121*G121 -> $711.16 | O121: =L121+N121 -> $1,192
D123: Exterior Metal Stud Wall (7'-7"H) | E123: 59
A124: 59 | B124: A100-A400 | C124: A100-A400 | D124: R-21 Fiber Glass Batt Insulation | E124: =E123*8.75 -> 516 | F124: 5% | G124: =E124+(E124*F124) -> 542 | H124: SF | I124: 0.026 | J124: =I124*G124 -> 14.09 | K124: $43.68 | L124: =K124*J124 -> $615.61 | M124: $1.68 | N124: =M124*G124 -> $910.67 | O124: =L124+N124 -> $1,526
D126: Exterior Metal Stud Wall (6'-4"H) | E126: 24
A127: 60 | B127: A100-A400 | C127: A100-A400 | D127: R-21 Fiber Glass Batt Insulation | E127: =E126*7.33 -> 176 | F127: 5% | G127: =E127+(E127*F127) -> 185 | H127: SF | I127: 0.026 | J127: =I127*G127 -> 4.80 | K127: $43.68 | L127: =K127*J127 -> $209.78 | M127: $1.68 | N127: =M127*G127 -> $310.32 | O127: =L127+N127 -> $520
D129: Exterior Metal Stud Wall (6'-0"H) | E129: 43
A130: 61 | B130: A100-A400 | C130: A100-A400 | D130: R-21 Fiber Glass Batt Insulation | E130: =E129*6.5 -> 280 | F130: 5% | G130: =E130+(E130*F130) -> 293 | H130: SF | I130: 0.026 | J130: =I130*G130 -> 7.63 | K130: $43.68 | L130: =K130*J130 -> $333.29 | M130: $1.68 | N130: =M130*G130 -> $493.04 | O130: =L130+N130 -> $826
D132: 1B: Interior Metal Stud Wall (18'-8"H) | E132: 40
A133: 62 | B133: A100-A400 | C133: A100-A400 | D133: 3 1/2" Sound Attenuation Batt Insulation | E133: =E132*18.67 -> 747 | F133: 5% | G133: =E133+(E133*F133) -> 784 | H133: SF | I133: 0.026 | J133: =I133*G133 -> 20.39 | K133: $43.68 | L133: =K133*J133 -> $890.53 | M133: $1.58 | N133: =M133*G133 -> $1,238.94 | O133: =L133+N133 -> $2,129
D135: 1B: Interior Metal Stud Wall (8'-0"H) | E135: 49
A136: 63 | B136: A100-A400 | C136: A100-A400 | D136: 3 1/2" Sound Attenuation Batt Insulation | E136: =E135*8 -> 392 | F136: 5% | G136: =E136+(E136*F136) -> 412 | H136: SF | I136: 0.026 | J136: =I136*G136 -> 10.70 | K136: $43.68 | L136: =K136*J136 -> $467.45 | M136: $1.58 | N136: =M136*G136 -> $650.33 | O136: =L136+N136 -> $1,118
D138: Interior Metal Stud Wall (12'-0"H) | E138: 16
A139: 64 | B139: A100-A400 | C139: A100-A400 | D139: 3 1/2" Sound Attenuation Batt Insulation | E139: =E138*12 -> 192 | F139: 5% | G139: =E139+(E139*F139) -> 202 | H139: SF | I139: 0.026 | J139: =I139*G139 -> 5.24 | K139: $43.68 | L139: =K139*J139 -> $228.95 | M139: $1.58 | N139: =M139*G139 -> $318.53 | O139: =L139+N139 -> $547
D141: 1B: Interior Metal Stud Wall (8'-0"H) | E141: 3
A142: 65 | B142: A100-A400 | C142: A100-A400 | D142: 3 1/2" Sound Attenuation Batt Insulation | E142: =E141*8 -> 24 | F142: 5% | G142: =E142+(E142*F142) -> 25 | H142: SF | I142: 0.026 | J142: =I142*G142 -> 0.66 | K142: $43.68 | L142: =K142*J142 -> $28.62 | M142: $1.58 | N142: =M142*G142 -> $39.82 | O142: =L142+N142 -> $68
D144: 2A: Interior Metal Stud Wall (8'-0"H) | E144: 7
A145: 66 | B145: A100-A400 | C145: A100-A400 | D145: 2 1/2" Thick Sound Attenuation Batt Insulation | E145: =E144*8 -> 56 | F145: 5% | G145: =E145+(E145*F145) -> 59 | H145: SF | I145: 0.026 | J145: =I145*G145 -> 1.53 | K145: $43.68 | L145: =K145*J145 -> $66.78 | M145: $1.54 | N145: =M145*G145 -> $90.55 | O145: =L145+N145 -> $157
D147: 2A: Interior Metal Stud Wall (8'-0"H) | E147: 33
A148: =IF(H148<>"",1+MAX(A136:A147),"") -> 67 | B148: A100-A400 | C148: A100-A400 | D148: 2 1/2" Thick Sound Attenuation Batt Insulation | E148: =E147*8 -> 264 | F148: 5% | G148: =E148+(E148*F148) -> 277 | H148: SF | I148: 0.026 | J148: =I148*G148 -> 7.21 | K148: $43.68 | L148: =K148*J148 -> $314.81 | M148: $1.54 | N148: =M148*G148 -> $426.89 | O148: =L148+N148 -> $742
D150: 2C: Interior Metal Stud Wall (8'-0"H) | E150: 8
A151: 68 | B151: A100-A400 | C151: A100-A400 | D151: 5 1/2" Thick Sound Attenuation Batt | E151: =E150*8.5 -> 68 | F151: 5% | G151: =E151+(E151*F151) -> 71 | H151: SF | I151: 0.026 | J151: =I151*G151 -> 1.86 | K151: $43.68 | L151: =K151*J151 -> $81.09 | M151: $1.60 | N151: =M151*G151 -> $114.24 | O151: =L151+N151 -> $195
D153: 2C: Interior Metal Stud Wall (8'-0"H) | E153: 4
A154: 69 | B154: A100-A400 | C154: A100-A400 | D154: 5 1/2" Thick Sound Attenuation Batt | E154: =E153*8.5 -> 34 | F154: 5% | G154: =E154+(E154*F154) -> 36 | H154: SF | I154: 0.026 | J154: =I154*G154 -> 0.93 | K154: $43.68 | L154: =K154*J154 -> $40.54 | M154: $1.60 | N154: =M154*G154 -> $57.12 | O154: =L154+N154 -> $98
D156: 2C: Interior Metal Stud Wall (8'-0"H) | E156: 3
A157: 70 | B157: A100-A400 | C157: A100-A400 | D157: 5 1/2" Thick Sound Attenuation Batt | E157: =E156*8 -> 24 | F157: 5% | G157: =E157+(E157*F157) -> 25 | H157: SF | I157: 0.026 | J157: =I157*G157 -> 0.66 | K157: $43.68 | L157: =K157*J157 -> $28.62 | M157: $1.60 | N157: =M157*G157 -> $40.32 | O157: =L157+N157 -> $69
D159: Acoustical Ceiling Tiles
A160: 71 | B160: A100-A400 | C160: A100-A400 | D160: (6" Thk.) Sound Attenuation Batts at Ceiling | E160: =49.18+48.52+86.42 -> 184 | F160: 5% | G160: =E160+(E160*F160) -> 193 | H160: SF | I160: 0.026 | J160: =I160*G160 -> 5.03 | K160: $43.68 | L160: =K160*J160 -> $219.56 | M160: $1.58 | N160: =M160*G160 -> $305.46 | O160: =L160+N160 -> $525
L161: =IF(H161<>"",I161*K161,"") -> 
D162: SUBTOTAL | L162: =IF(H162<>"",I162*K162,"") ->  | P162: =SUM(O105:O161) -> $17,998
C163: 090000 | D163: DIVISION 09 — FINISHES | L163: =IF(H163<>"",0.4*N163,"") ->  | M163: =IF(H163<>"",N163-L163,"") -> 
D165: DRYWALL
D167: Furring Wall 20'-4"H | E167: 26
A168: 72 | B168: A100-A400 | C168: A100-A400 | D168: 5/8" Gypsum Board (4 x 8) | E168: =(20.33*E167)/32 -> 17 | F168: 0% | G168: =E168+(E168*F168) -> 17 | H168: EA | I168: 0.416 | J168: =I168*G168 -> 6.87 | K168: $43.68 | L168: =K168*J168 -> $300.15 | M168: $24.96 | N168: =M168*G168 -> $412.29 | O168: =L168+N168 -> $712
A169: 73 | B169: A100-A400 | C169: A100-A400 | D169: Acoustical Sealant At Top And Bottom Of Wall | E169: =E167*2 -> 52 | F169: 5% | G169: =E169+(E169*F169) -> 55 | H169: LF | I169: 0.010 | J169: 0.55 | K169: $43.68 | L169: $23.85 | M169: $0.60 | N169: $32.76 | O169: $57
A170: 74 | D170: Tapping | E170: =E168*16 -> 264 | F170: 5% | G170: 278 | H170: LF | I170: 0.001 | J170: 0.17 | K170: $43.68 | L170: $7.27 | M170: $0.04 | N170: $9.99 | O170: $17
A171: 75 | D171: Mudding Compound | E171: =531*0.053 -> 28 | F171: 5% | G171: 30 | H171: LBS | I171: 0.050 | J171: 1.48 | K171: $43.68 | L171: $64.54 | M171: $3.00 | N171: $88.65 | O171: $153
A172: 76 | D172: Screws | E172: =E168*45 -> 743 | F172: 0% | G172: =E172+(E172*F172) -> 743 | H172: EA | I172: 0.000 | J172: =I172*G172 -> 0.22 | K172: $43.68 | L172: =K172*J172 -> $9.74 | M172: $0.02 | N172: =M172*G172 -> $13.38 | O172: =L172+N172 -> $23
D174: Furring Wall 1'-6"H | E174: 128
A175: 77 | B175: A100-A400 | C175: A100-A400 | D175: 5/8" Thick Gypsum Board (4 x 8) | E175: =(E174*2)/32 -> 8 | F175: 0% | G175: =E175+(E175*F175) -> 8 | H175: EA | I175: 0.416 | J175: =I175*G175 -> 3.33 | K175: $43.68 | L175: =K175*J175 -> $145.37 | M175: $24.96 | N175: =M175*G175 -> $199.68 | O175: =L175+N175 -> $345
A176: 78 | B176: A100-A400 | C176: A100-A400 | D176: Acoustical Sealant At Top And Bottom Of Wall | E176: =E174*2 -> 256 | F176: 5% | G176: 269 | H176: LF | I176: 0.010 | J176: 2.69 | K176: $43.68 | L176: $117.41 | M176: $0.60 | N176: $161.28 | O176: $279
A177: 79 | D177: Tapping | E177: =E175*16 -> 128 | F177: 5% | G177: 134 | H177: LF | I177: 0.001 | J177: 0.08 | K177: $43.68 | L177: $3.52 | M177: $0.04 | N177: $4.84 | O177: $8
A178: 80 | D178: Mudding Compound | E178: =256*0.053 -> 14 | F178: 5% | G178: 14 | H178: LBS | I178: 0.050 | J178: 0.71 | K178: $43.68 | L178: $31.11 | M178: $3.00 | N178: $42.74 | O178: $74
A179: 81 | D179: Screws | E179: =E175*45 -> 360 | F179: 0% | G179: =E179+(E179*F179) -> 360 | H179: EA | I179: 0.000 | J179: =I179*G179 -> 0.11 | K179: $43.68 | L179: =K179*J179 -> $4.72 | M179: $0.02 | N179: =M179*G179 -> $6.48 | O179: =L179+N179 -> $11
D181: Exterior Metal Stud Wall (6'-0"H) | E181: 55
A182: 82 | B182: A100-A400 | C182: A100-A400 | D182: 5/8" Thick Gypsum Board (4 x 8) | E182: =(E181*7.33)/32 -> 13 | F182: 0% | G182: =E182+(E182*F182) -> 13 | H182: EA | I182: 0.416 | J182: =I182*G182 -> 5.24 | K182: $43.68 | L182: =K182*J182 -> $228.92 | M182: $24.96 | N182: =M182*G182 -> $314.46 | O182: =L182+N182 -> $543
A183: 83 | B183: A100-A400 | C183: A100-A400 | D183: Acoustical Sealant At Top And Bottom Of Wall | E183: =E181*2 -> 110 | F183: 5% | G183: =E183+(E183*F183) -> 116 | H183: LF | I183: 0.010 | J183: 1.16 | K183: $43.68 | L183: $50.45 | M183: $0.60 | N183: $69.30 | O183: $120
A184: 84 | D184: Tapping | E184: =E182*16 -> 202 | F184: 5% | G184: 212 | H184: LF | I184: 0.001 | J184: 0.13 | K184: $43.68 | L184: $5.55 | M184: $0.04 | N184: $7.62 | O184: $13
A185: 85 | D185: Mudding Compound | E185: =403*0.053 -> 21 | F185: 5% | G185: 22 | H185: LBS | I185: 0.050 | J185: 1.12 | K185: $43.68 | L185: $48.98 | M185: $3.00 | N185: $67.28 | O185: $116
A186: 86 | D186: Screws | E186: =E182*45 -> 567 | F186: 0% | G186: =E186+(E186*F186) -> 567 | H186: EA | I186: 0.000 | J186: =I186*G186 -> 0.17 | K186: $43.68 | L186: =K186*J186 -> $7.43 | M186: $0.02 | N186: =M186*G186 -> $10.20 | O186: =L186+N186 -> $18
D188: Exterior Metal Stud Wall (7'-7"H) | E188: 59
A189: 87 | B189: A100-A400 | C189: A100-A400 | D189: 5/8" Thick M.R Gypsum Board (4 x 8) | E189: =(7.67*59.41)/32 -> 14 | F189: 0% | G189: =E189+(E189*F189) -> 14 | H189: EA | I189: 0.416 | J189: =I189*G189 -> 5.92 | K189: $43.68 | L189: =K189*J189 -> $258.75 | M189: $26.45 | N189: =M189*G189 -> $376.64 | O189: =L189+N189 -> $635
A190: 88 | B190: A100-A400 | C190: A100-A400 | D190: Acoustical Sealant At Top And Bottom Of Wall | E190: =E188*2 -> 118 | F190: 5% | G190: =E190+(E190*F190) -> 124 | H190: LF | I190: 0.010 | J190: =I190*G190 -> 1.24 | K190: $43.68 | L190: =K190*J190 -> $54.12 | M190: $0.60 | N190: =M190*G190 -> $74.34 | O190: =L190+N190 -> $128
A191: 89 | D191: Tapping | E191: =E189*16 -> 228 | F191: 5% | G191: 239 | H191: LF | I191: 0.001 | J191: 0.14 | K191: $43.68 | L191: $6.27 | M191: $0.04 | N191: $8.61 | O191: $15
A192: 90 | D192: Mudding Compound | E192: =456*0.053 -> 24 | F192: 5% | G192: 25 | H192: LBS | I192: 0.050 | J192: 1.27 | K192: $43.68 | L192: $55.42 | M192: $3.00 | N192: $76.13 | O192: $132
A193: 91 | D193: Screws | E193: =E189*45 -> 641 | F193: 0% | G193: =E193+(E193*F193) -> 641 | H193: EA | I193: 0.000 | J193: =I193*G193 -> 0.19 | K193: $43.68 | L193: =K193*J193 -> $8.40 | M193: $0.02 | N193: =M193*G193 -> $11.53 | O193: =L193+N193 -> $20
D195: Exterior Metal Stud Wall (6'-4"H) | E195: 24
A196: 92 | B196: A100-A400 | C196: A100-A400 | D196: 5/8" Thick M.R Gypsum Board (4 x 8) | E196: =(E195*7.33)/32 -> 5 | F196: 0% | G196: =E196+(E196*F196) -> 5 | H196: EA | I196: 0.416 | J196: =I196*G196 -> 2.29 | K196: $43.68 | L196: =K196*J196 -> $99.89 | M196: $26.45 | N196: =M196*G196 -> $145.41 | O196: =L196+N196 -> $245
A197: 93 | B197: A100-A400 | C197: A100-A400 | D197: Acoustical Sealant At Top And Bottom Of Wall | E197: =E195*2 -> 48 | F197: 5% | G197: =E197+(E197*F197) -> 50 | H197: LF | I197: 0.010 | J197: =I197*G197 -> 0.50 | K197: $43.68 | L197: =K197*J197 -> $22.01 | M197: $0.60 | N197: =M197*G197 -> $30.24 | O197: =L197+N197 -> $52
A198: 94 | D198: Tapping | E198: =E196*16 -> 88 | F198: 5% | G198: 92 | H198: LF | I198: 0.001 | J198: 0.06 | K198: $43.68 | L198: $2.42 | M198: $0.04 | N198: $3.32 | O198: $6
A199: 95 | D199: Mudding Compound | E199: =176*0.053 -> 9 | F199: 5% | G199: 10 | H199: LBS | I199: 0.050 | J199: 0.49 | K199: $43.68 | L199: $21.39 | M199: $3.00 | N199: $29.38 | O199: $51
A200: 96 | D200: Screws | E200: =E196*45 -> 247 | F200: 0% | G200: =E200+(E200*F200) -> 247 | H200: EA | I200: 0.000 | J200: =I200*G200 -> 0.07 | K200: $43.68 | L200: =K200*J200 -> $3.24 | M200: $0.02 | N200: =M200*G200 -> $4.45 | O200: =L200+N200 -> $8
D202: Exterior Metal Stud Wall (6'-0"H) | E202: 43
A203: 97 | B203: A100-A400 | C203: A100-A400 | D203: 5/8" Thick M.R Gypsum Board (4 x 8) | E203: =6.5*42.62/32 -> 9 | F203: 0% | G203: =E203+(E203*F203) -> 9 | H203: EA | I203: 0.416 | J203: =I203*G203 -> 3.60 | K203: $43.68 | L203: =K203*J203 -> $157.31 | M203: $26.45 | N203: =M203*G203 -> $228.98 | O203: =L203+N203 -> $386
A204: 98 | B204: A100-A400 | C204: A100-A400 | D204: Acoustical Sealant At Top And Bottom Of Wall | E204: =E202*2 -> 86 | F204: 5% | G204: =E204+(E204*F204) -> 90 | H204: LF | I204: 0.010 | J204: =I204*G204 -> 0.90 | K204: $43.68 | L204: =K204*J204 -> $39.44 | M204: $0.60 | N204: =M204*G204 -> $54.18 | O204: =L204+N204 -> $94
A205: 99 | D205: Tapping | E205: =E203*16 -> 139 | F205: 5% | G205: 145 | H205: LF | I205: 0.001 | J205: 0.09 | K205: $43.68 | L205: $3.81 | M205: $0.04 | N205: $5.24 | O205: $9
A206: 100 | D206: Mudding Compound | E206: =277*0.053 -> 15 | F206: 5% | G206: 15 | H206: LBS | I206: 0.050 | J206: 0.77 | K206: $43.68 | L206: $33.67 | M206: $3.00 | N206: $46.25 | O206: $80
A207: 101 | D207: Screws | E207: =E203*45 -> 390 | F207: 0% | G207: =E207+(E207*F207) -> 390 | H207: EA | I207: 0.000 | J207: =I207*G207 -> 0.12 | K207: $43.68 | L207: =K207*J207 -> $5.10 | M207: $0.02 | N207: =M207*G207 -> $7.01 | O207: =L207+N207 -> $12
D209: Interior Metal Stud Wall (9'-0"H) | E209: 25
A210: 102 | B210: A100-A400 | C210: A100-A400 | D210: 5/8" Thick Gypsum Board (4 x 8) | E210: =9*E209/32 -> 7 | F210: 0% | G210: =E210+(E210*F210) -> 7 | H210: EA | I210: 0.416 | J210: =I210*G210 -> 2.93 | K210: $43.68 | L210: =K210*J210 -> $127.76 | M210: $24.96 | N210: =M210*G210 -> $175.50 | O210: =L210+N210 -> $303
A211: 103 | B211: A100-A400 | C211: A100-A400 | D211: Acoustical Sealant At Top And Bottom Of Wall | E211: =E209*2*2 -> 100 | F211: 5% | G211: =E211+(E211*F211) -> 105 | H211: LF | I211: 0.010 | J211: 1.05 | K211: $43.68 | L211: $45.86 | M211: $0.60 | N211: $63.00 | O211: $109
A212: =IF(H212<>"",1+MAX(A200:A211),"") -> 104 | D212: Tapping | E212: =E210*16 -> 113 | F212: 5% | G212: 118 | H212: LF | I212: 0.001 | J212: 0.07 | K212: $43.68 | L212: $3.10 | M212: $0.04 | N212: $4.25 | O212: $7
A213: 105 | D213: Mudding Compound | E213: =223*0.053 -> 12 | F213: 5% | G213: 12 | H213: LBS | I213: 0.050 | J213: 0.62 | K213: $43.68 | L213: $27.10 | M213: $3.00 | N213: $37.23 | O213: $64
A214: 106 | D214: Screws | E214: =E210*45 -> 316 | F214: 0% | G214: =E214+(E214*F214) -> 316 | H214: EA | I214: 0.000 | J214: =I214*G214 -> 0.09 | K214: $43.68 | L214: =K214*J214 -> $4.15 | M214: $0.02 | N214: =M214*G214 -> $5.70 | O214: =L214+N214 -> $10
D216: 1B: Interior Metal Stud Wall (18'-8"H) | E216: 40
A217: 107 | B217: A100-A400 | C217: A100-A400 | D217: 5/8" Thick Hi-Impact Gypsum Board (4 x 8) | E217: =10*E216/32 -> 13 | F217: 0% | G217: =E217+(E217*F217) -> 13 | H217: EA | I217: 0.416 | J217: =I217*G217 -> 5.20 | K217: $43.68 | L217: =K217*J217 -> $227.14 | M217: $26.45 | N217: =M217*G217 -> $330.63 | O217: =L217+N217 -> $558
A218: 108 | B218: A100-A400 | C218: A100-A400 | D218: Acoustical Sealant At Top And Bottom Of Wall | E218: =E216*2*2 -> 160 | F218: 5% | G218: =E218+(E218*F218) -> 168 | H218: LF | I218: 0.010 | J218: =I218*G218 -> 1.68 | K218: $43.68 | L218: =K218*J218 -> $73.38 | M218: $0.60 | N218: =M218*G218 -> $100.80 | O218: =L218+N218 -> $174
A219: 109 | D219: Tapping | E219: =E217*16 -> 200 | F219: 5% | G219: 210 | H219: LF | I219: 0.001 | J219: 0.13 | K219: $43.68 | L219: $5.50 | M219: $0.04 | N219: $7.56 | O219: $13
A220: 110 | D220: Mudding Compound | E220: =395*0.053 -> 21 | F220: 5% | G220: 22 | H220: LBS | I220: 0.050 | J220: 1.10 | K220: $43.68 | L220: $48.01 | M220: $3.00 | N220: $65.95 | O220: $114
A221: 111 | D221: Screws | E221: =E217*45 -> 563 | F221: 0% | G221: =E221+(E221*F221) -> 563 | H221: EA | I221: 0.000 | J221: =I221*G221 -> 0.17 | K221: $43.68 | L221: =K221*J221 -> $7.37 | M221: $0.02 | N221: =M221*G221 -> $10.13 | O221: =L221+N221 -> $17
A223: 112 | B223: A100-A400 | C223: A100-A400 | D223: 5/8" Thick Gypsum Board (4 x 8) | E223: =8.67*39.53/32 -> 11 | F223: 0% | G223: =E223+(E223*F223) -> 11 | H223: EA | I223: 0.416 | J223: =I223*G223 -> 4.46 | K223: $43.68 | L223: =K223*J223 -> $194.61 | M223: $24.96 | N223: =M223*G223 -> $267.33 | O223: =L223+N223 -> $462
A224: 113 | D224: Tapping | E224: =E223*16 -> 171 | F224: 5% | G224: =E224+(E224*F224) -> 180 | H224: LF | I224: 0.001 | J224: 0.11 | K224: $43.68 | L224: $4.72 | M224: $0.04 | N224: $6.48 | O224: $11
A225: 114 | D225: Mudding Compound | E225: =343*0.053 -> 18 | F225: 5% | G225: 19 | H225: LBS | I225: 0.050 | J225: 0.95 | K225: $43.68 | L225: $41.69 | M225: $3.00 | N225: $57.26 | O225: $99
A226: 115 | D226: Screws | E226: =E223*45 -> 482 | F226: 0% | G226: =E226+(E226*F226) -> 482 | H226: EA | I226: 0.000 | J226: =I226*G226 -> 0.14 | K226: $43.68 | L226: =K226*J226 -> $6.32 | M226: $0.02 | N226: =M226*G226 -> $8.68 | O226: =L226+N226 -> $15
D228: 1B: Interior Metal Stud Wall (8'-0"H) | E228: 49
A229: 116 | B229: A100-A400 | C229: A100-A400 | D229: 5/8" Thick MR High Impact Gypsum Board (4 x 8) | E229: =E228*8*2/32 -> 25 | F229: 0% | G229: =E229+(E229*F229) -> 25 | H229: EA | I229: 0.416 | J229: =I229*G229 -> 10.19 | K229: $43.68 | L229: =K229*J229 -> $445.19 | M229: $26.45 | N229: =M229*G229 -> $648.03 | O229: =L229+N229 -> $1,093
A230: 117 | B230: A100-A400 | C230: A100-A400 | D230: Acoustical Sealant At Top And Bottom Of Wall | E230: =E228*2*2 -> 196 | F230: 5% | G230: =E230+(E230*F230) -> 206 | H230: LF | I230: 0.010 | J230: =I230*G230 -> 2.06 | K230: $43.68 | L230: =K230*J230 -> $89.89 | M230: $0.60 | N230: =M230*G230 -> $123.48 | O230: =L230+N230 -> $213
A231: 118 | D231: Tapping | E231: =E229*16 -> 392 | F231: 5% | G231: 412 | H231: LF | I231: 0.001 | J231: 0.25 | K231: $43.68 | L231: $10.79 | M231: $0.04 | N231: $14.82 | O231: $26
A232: 119 | D232: Mudding Compound | E232: =784*0.053 -> 42 | F232: 5% | G232: 44 | H232: LBS | I232: 0.050 | J232: 2.18 | K232: $43.68 | L232: $95.29 | M232: $3.00 | N232: $130.89 | O232: $226
A233: 120 | D233: Screws | E233: =E229*45 -> 1103 | F233: 0% | G233: =E233+(E233*F233) -> 1103 | H233: EA | I233: 0.000 | J233: =I233*G233 -> 0.33 | K233: $43.68 | L233: =K233*J233 -> $14.45 | M233: $0.02 | N233: =M233*G233 -> $19.85 | O233: =L233+N233 -> $34
D235: Interior Metal Stud Wall (12'-0"H) | E235: 16
A236: 121 | B236: A100-A400 | C236: A100-A400 | D236: 5/8" Thick Gypsum Board (4 x 8) | E236: =(E235*8.5+E235*12.5)/32 -> 11 | F236: 0% | G236: =E236+(E236*F236) -> 11 | H236: EA | I236: 0.416 | J236: =I236*G236 -> 4.37 | K236: $43.68 | L236: =K236*J236 -> $190.79 | M236: $24.96 | N236: =M236*G236 -> $262.08 | O236: =L236+N236 -> $453
A237: 122 | B237: A100-A400 | C237: A100-A400 | D237: Acoustical Sealant At Top And Bottom Of Wall | E237: =E235*2*2 -> 64 | F237: 5% | G237: =E237+(E237*F237) -> 67 | H237: LF | I237: 0.010 | J237: 0.67 | K237: $43.68 | L237: $29.35 | M237: $0.60 | N237: $40.32 | O237: $70
A238: 123 | D238: Tapping | E238: =E236*16 -> 168 | F238: 5% | G238: 176 | H238: LF | I238: 0.001 | J238: 0.11 | K238: $43.68 | L238: $4.62 | M238: $0.04 | N238: $6.35 | O238: $11
A239: 124 | D239: Mudding Compound | E239: =336*0.053 -> 18 | F239: 5% | G239: 19 | H239: LBS | I239: 0.050 | J239: 0.93 | K239: $43.68 | L239: $40.84 | M239: $3.00 | N239: $56.10 | O239: $97
A240: 125 | D240: Screws | E240: =E236*45 -> 473 | F240: 0% | G240: =E240+(E240*F240) -> 473 | H240: EA | I240: 0.000 | J240: =I240*G240 -> 0.14 | K240: $43.68 | L240: =K240*J240 -> $6.19 | M240: $0.02 | N240: =M240*G240 -> $8.51 | O240: =L240+N240 -> $15
D242: 2A: Interior Metal Stud Wall (8'-0"H) | E242: 7
A243: 126 | B243: A100-A400 | C243: A100-A400 | D243: 5/8" Thick M.R Gypsum Board (4 x 8) | E243: =E242*8.5/32 -> 2 | F243: 0% | G243: =E243+(E243*F243) -> 2 | H243: EA | I243: 0.416 | J243: =I243*G243 -> 0.77 | K243: $43.68 | L243: =K243*J243 -> $33.79 | M243: $26.45 | N243: =M243*G243 -> $49.18 | O243: =L243+N243 -> $83
A244: 127 | B244: A100-A400 | C244: A100-A400 | D244: Acoustical Sealant At Top And Bottom Of Wall | E244: =E242*2*2 -> 28 | F244: 5% | G244: =E244+(E244*F244) -> 29 | H244: LF | I244: 0.010 | J244: =I244*G244 -> 0.29 | K244: $43.68 | L244: =K244*J244 -> $12.84 | M244: $0.60 | N244: =M244*G244 -> $17.64 | O244: =L244+N244 -> $30
A245: 128 | D245: Tapping | E245: =E243*16 -> 30 | F245: 5% | G245: 31 | H245: LF | I245: 0.001 | J245: 0.02 | K245: $43.68 | L245: $0.82 | M245: $0.04 | N245: $1.12 | O245: $2
A246: 129 | D246: Mudding Compound | E246: =60*0.053 -> 3 | F246: 5% | G246: 3 | H246: LBS | I246: 0.050 | J246: 0.17 | K246: $43.68 | L246: $7.29 | M246: $3.00 | N246: $10.02 | O246: $17
A247: 130 | D247: Screws | E247: =E243*45 -> 84 | F247: 0% | G247: =E247+(E247*F247) -> 84 | H247: EA | I247: 0.000 | J247: =I247*G247 -> 0.03 | K247: $43.68 | L247: =K247*J247 -> $1.10 | M247: $0.02 | N247: =M247*G247 -> $1.51 | O247: =L247+N247 -> $3
D249: 2A: Interior Metal Stud Wall (8'-0"H) | E249: 33
A250: 131 | B250: A100-A400 | C250: A100-A400 | D250: 5/8" Thick Gypsum Board (4 x 8) | E250: =E249*8.5/32 -> 9 | F250: 0% | G250: =E250+(E250*F250) -> 9 | H250: EA | I250: 0.416 | J250: =I250*G250 -> 3.65 | K250: $43.68 | L250: =K250*J250 -> $159.28 | M250: $24.96 | N250: =M250*G250 -> $218.79 | O250: =L250+N250 -> $378
A251: 132 | B251: A100-A400 | C251: A100-A400 | D251: Acoustical Sealant At Top And Bottom Of Wall | E251: =E249*2*2 -> 132 | F251: 5% | G251: =E251+(E251*F251) -> 139 | H251: LF | I251: 0.010 | J251: 1.39 | K251: $43.68 | L251: $60.54 | M251: $0.60 | N251: $83.16 | O251: $144
A252: 133 | D252: Tapping | E252: =E250*16 -> 140 | F252: 5% | G252: 147 | H252: LF | I252: 0.001 | J252: 0.09 | K252: $43.68 | L252: $3.86 | M252: $0.04 | N252: $5.30 | O252: $9
A253: 134 | D253: Mudding Compound | E253: =281*0.053 -> 15 | F253: 5% | G253: 16 | H253: LBS | I253: 0.050 | J253: 0.78 | K253: $43.68 | L253: $34.15 | M253: $3.00 | N253: $46.91 | O253: $81
A254: 135 | D254: Screws | E254: =E250*45 -> 394 | F254: 0% | G254: =E254+(E254*F254) -> 394 | H254: EA | I254: 0.000 | J254: =I254*G254 -> 0.12 | K254: $43.68 | L254: =K254*J254 -> $5.17 | M254: $0.02 | N254: =M254*G254 -> $7.10 | O254: =L254+N254 -> $12
... 47 more rows

Sheet UJ (hidden)
C2: PROJECT: | D2: 625 PARK AVE PHASE 1B
C3: ADDRESS: | D3: 625 PARK AVENUE,
D4: NEW YORK, NY-10065.
H6: DATE | I6: =TODAY() -> 2026-07-28
A7: ITEM # | B7: CSI SEC. | C7: DESCRIPTION | D7: QTY. | E7: WASTE | F7: QTY. W/ WASTE | G7: UNIT | H7: UNIT COST | I7: TRADE COST | L7: Single side areas
C8: SCOPE OF WORK | L8: Dry | M8: Wet
A9: 1 | B9: 09 29 | C9: 2 layered 5/8" thick USG fiberock brand panels for walls and ceilings. | D9: 11,635 | E9: 10% | F9: =D9*(1+E9) -> 12,799 | G9: sf | H9: $4.0 | I9: =H9*F9 -> $51,194 | J9: Type 1+Type 4+Type 6+ceiling | K9: Type 1 | L9: =2520-80 -> 2440 | M9: 280 | N9: =(2440*2+290*2+2345+3830) -> 11635
A10: 2 | B10: 09 29 | C10: 2 layerd 5/8" thick USG fiberock aqua tough brand panels for wall and ceilings in wet areas. | D10: 1,185 | E10: 10% | F10: =D10*(1+E10) -> 1,304 | G10: sf | H10: $4.5 | I10: =H10*F10 -> $5,866 | J10: Type 1+Type 4+Type 6+wet ceiling | K10: Type 2 | L10: =210-80 -> 130 | M10: 80 | N10: =(280*2+325+300) -> 1185
A11: 3 | B11: 09 29 | C11: 2 layered 2 HR rated 5/8" thick USG fiberock brand panels for walls. | D11: 260 | E11: 10% | F11: =D11*(1+E11) -> 286 | G11: sf | H11: $4.5 | I11: =H11*F11 -> $1,287 | J11: Type 2 | K11: Type 3 | N11: =130*2 -> 260
A12: 4 | B12: 09 29 | C12: 2 layered 2 HR rated 5/8" thick USG fiberock aqua tough brand panels for walls in wet areas. | D12: 160 | E12: 10% | F12: 176 | G12: sf | H12: $5.0 | I12: =H12*F12 -> $880 | J12: Type 2 | K12: Type 4 | L12: 290 | N12: =80*2 -> 160
A13: 5 | B13: 09 29 | C13: 3 layered 3 HR rated 5/8" thick USG fiberock brand panels for walls. | D13: 300 | E13: 10% | F13: 330 | G13: sf | H13: $4.0 | I13: =H13*F13 -> $1,320 | J13: Type 7 | K13: Type 5 | L13: 1200 | N13: =150*2 -> 300
A14: 6 | B14: 09 26 | C14: 3/32" thick gypsum veneer plaster skim coat. | D14: 14,740 | E14: 10% | F14: 16,214 | G14: sf | H14: $4.0 | I14: =H14*F14 -> $64,856 | J14: Type 1+Type 2+ Type 4+Type 5+Type 6 +Type 7 | K14: Type 6 | L14: =2670-325 -> 2345 | M14: 325 | N14: =SUM(N9:N13)+L13 -> 14740 | O14: =SUM(L9:M10)*2+L13+SUM(L14:M14)+L15*2+SUM(L17:M17)+L12*2 -> 14740 | P14: =N14-O14 -> 0
A15: 7 | B15: 09 22 16 | C15: 3-5/8" steel studs 20 GA @ 16" O.C. | D15: 5,750 | E15: 10% | F15: 6,325 | G15: sf | H15: $2.5 | I15: =H15*F15 -> $15,813 | J15: Type 1+Type 2+Type 6+Type 7 | K15: Type 7 | L15: 150 | N15: =SUM(L9:M10)+SUM(L14:M15) -> 5750
A16: 8 | B16: 10 22 16 | C16: 1-5/8" steel studs 20 GA @ 12" O.C. | D16: 290 | E16: 10% | F16: 319 | G16: sf | H16: $2.0 | I16: $638 | J16: Type 4 | K16: Type 8 | L16: 20
A17: 8 | B17: 09 22 26 | C17: Ceiling suspension system. | D17: 4,130 | E17: 10% | F17: 4,543 | G17: sf | H17: $3.0 | I17: =H17*F17 -> $13,629 | K17: Ceiling | L17: 3830 | M17: 300 | N17: =SUM(L17:M17) -> 4130
A18: 9 | B18: 07 21 16 | C18: Batt Insulation. | D18: 5,600 | E18: 5% | F18: 5,880 | G18: sf | H18: $2.0 | I18: =H18*F18 -> $11,760 | J18: Type 1+Type 2+ Type 6 | N18: =SUM(L9:M10)+SUM(L14:M14) -> 5600
A19: 10 | B19: 07 21 16 | C19: Batt Insulation type SAFB. | D19: 150 | E19: 10% | F19: 165 | G19: sf | H19: $2.2 | I19: =H19*F19 -> $363 | J19: Type 7 | N19: 150
A21: SUB TOTAL | I21: =SUM(I9:I19) -> $167,605
A22: INSURANCE (3%) | I22: =(3/100)*I21 -> $5,028
A23: TOTAL BASE BID | I23: =SUM(I21:I22) -> $172,633
C25: Exclusions
B26: 1 | C26: Mouldings
B27: 2 | C27: Patch work
B28: 3 | C28: Fixtures
B29: 4 | C29: Electrical work
B30: 5 | C30: Stone and/or tile work
B31: 6 | C31: Wall type 8 [no details on provided on the drawing]

Sheet DETAIL (2) (hidden)
B2: PROJECT: | C2: 625 PARK AVE PHASE 1B
B3: ADDRESS: | C3: 625 PARK AVENUE
C4: NEW YORK, NY 10065
E6: DATE | F6: =TODAY() -> 2026-07-28
A7: ITEM # | B7: DESCRIPTION | C7: UNIT COST | D7: QTY. | E7: UNIT | F7: TRADE COST
B8: SCOPE OF WORK
A9: 1 | B9: 5/8" 2 layered USG fiberock brand panels. | D9: =((2358+277+2077)-644)+3830 -> 7,898 | E9: sf | F9: =C9*D9 -> 0 | G9: Type 1+Type 4+Type 6+ceiling
A10: 2 | B10: 5/8" 2 layered USG fiberock aqua tough brand panels. (Wet area). | D10: =644+292 -> 936 | E10: sf | F10: =C10*D10 -> 0 | G10: Type 1+Type 4+Type 6+wet ceiling | I10: Height 9'6"
A11: 3 | B11: 2 HR rated 5/8" 2 layered USG fiberock brand panels. | D11: =206-78 -> 128 | E11: sf | F11: 0 | G11: Type 2 | I11: For Doors & Cabinets 1'3"
A12: 4 | B12: 2 HR rated 5/8" 2 layered USG fiberock aqua tough brand panels. (Wet area). | D12: 78 | E12: sf | F12: 0 | G12: Type 2
A13: 5 | B13: 3 HR rated 5/8" 3 layered USG fiberock brand panels. | D13: 148 | E13: sf | F13: 0 | G13: Type 7
A14: 6 | B14: 3/32" thick gypsum veneer plaster skim coat. | D14: =2538+206+277+1343+2077+148 -> 6,589 | E14: sf | F14: 0 | G14: Type 1+Type 2+ Type 4+Type 5+Type 6 +Type 7
A15: 7 | B15: 3 5/8" steel studs 20 GA @ 16" O.C. | D15: 4,968 | E15: sf | F15: 0 | G15: Type 1+Type 2+Type 6+Type 7
A16: 8 | B16: 1 5/8" steel studs 20 GA @ 12" O.C. | D16: 277 | E16: sf | F16: 0 | G16: Type 4
A17: 9 | B17: Batt sound Insulation. | D17: =2538+206+2077 -> 4,821 | E17: sf | F17: 0 | G17: Type 1+Type 2+ Type 6
A18: 10 | B18: Batt sound Insulation type SAFB. | D18: 148 | E18: sf | F18: 0 | G18: Type 7 | H18: QTY Details
H19: Type 1 | I19: 2538 | J19: 2520
A20: TOTAL | F20: =SUM(F9:F18) -> 0 | H20: Type 2 | I20: 205 | J20: 206
B21: Exclusions | H21: Type 3 | I21: N/A
A22: 1 | B22: Mouldings | H22: Type 4 | I22: 277 | J22: 290
A23: 2 | B23: Patch work | H23: Type 5 | I23: 1342 | J23: 1200
A24: 3 | B24: Fixtures | H24: Type 6 | I24: 2077 | J24: 2670
A25: 4 | B25: Electrical work | H25: Type 7 | I25: 148 | J25: 150
A26: 5 | B26: Stone and/or tile work | H26: Type 8 | I26: 22 | J26: 20 | K26: No details given
A27: 6 | H27: Ceiling | I27: 3830
H28: Wet Ceiling | I28: 292
B31: DETAILS
B32: Type 1- Interior Partition | G32: Type 2- 2HR rated Interior Partition | H32: Type
B33: 2 layers 5/8' USG fiberock brand panels (Fiberock aqua tough brand at all wet areas) Glue second layer, finished with 3-32" thick gypsum veneer plaster skim coat. 3 5/8" Stl studs 20 GA @16" O.C with Batt insulation. 2 layers 5/8" USG fiberock brand panels(Fiberock aqua tough brand at all wet areas finished 3-32" thick gypsum veneer plaster skim coat | G33: 2 layers 5/8' USG fiberock brand panels (Fiberock aqua tough brand at all wet areas) Glue second layer, finished with 3-32" thick gypsum veneer plaster skim coat. 3 5/8" Stl studs 20 GA @16" O.C with Batt insulation. 2 layers 5/8" USG fiberock brand panels(Fiberock aqua tough brand at all wet areas finished 3-32" thick gypsum veneer plaster skim coat
B35: TYPE 3 Interior partition at chase | G35: TYPE 4 Pocket door partition
B36: 2 layer 5/8" USG fiberock brand panels ( Fiberock aqua tough brand at all wet areas ) Glue second layer fill batt insulation, finished with 3/32" thick gypsum veneer plaster skim coat. 20 Ga 2-1/2" mtl studs @ 16 O.C. with batt insulation. Pipe chase space. 2 layers 5/8" USG fiberock brand panels (Fiberock aqua tough brand at all wet areas finished with 3/32" thick gypsum veneer plaster skim coat. | G36: 2 Layers 5/8" USG fiberock brand panels (Fiberock Aqua tough brand at all wet areas) Glue second layer, Finished with 3/32" thick gypsum veneer plaster skim coat. 1 5/8" 20 Ga stl studs @12 O.C. 2 layer 5/8" USG fiberock brand panels (fiberock aqua tough brand at wet areas) finished with 3/32" thick gypsum veneer plaster skim coat.
B38: TYPE 5 Existing wall skim coat | G38: TYPE 6 EXISTING WALL- Furring
B39: Apply 3/32" Thick gypsum veneer skim coat. Fill and smooth all imperfections | G39: 3 5/8" 20 Ga stl studs @ 16 O.C. 2 layers 5/8" USG fiberock brand panels dimensions from exterior wall to be varified with architect. Fill with Batt insulation, Finished with 3/32" Thick Gypsum veneer plaster skim coat
B40: TYPE 7 Interior Partition- 3 Hr rated
B41: 3 layer 5/8" USG fiberock brand panels, glue third layer finished with 3/32" thick gypsum veneer plaster skim coat. 3 5/8" stl studs 20 GA @16"O.C. Batt insulation Type SAFB. 3 layer 5/8" USG fiberock brand panels, glue third layer finished with 3-32" thick gypsum veneer plaster skim coat
